[Event "*** Titled Tuesday 3|2 Blitz"]
[Site "Chess.com"]
[Date "2016.02.02"]
[Round "7"]
[White "ZEN-22"]
[Black "ruifeng"]
[Result "0-1"]
[WhiteElo "2368"]
[BlackElo "2330"]
[TimeControl "180+2"]
[EndTime "18:24:41 PST"]
[Termination "ruifeng won by checkmate"]

1. e4 {[%clk 0:03:01.5]} 1... c5 {[%clk 0:02:59.9]} 2. b4 {[%clk 0:03:01.2]}
2... Nc6 {[%clk 0:02:40.8]} 3. bxc5 {[%clk 0:03:01.7]} 3... e5 {[%clk
0:02:41.3]} 4. f4 {[%clk 0:02:52]} 4... Bxc5 {[%clk 0:02:38.4]} 5. Nf3 {[%clk
0:02:53]} 5... d6 {[%clk 0:02:24.5]} 6. c3 {[%clk 0:02:48.1]} 6... Nf6 {[%clk
0:02:23]} 7. d4 {[%clk 0:02:44.8]} 7... exd4 {[%clk 0:02:23.9]} 8. cxd4 {[%clk
0:02:45.8]} 8... Bb4+ {[%clk 0:02:25.1]} 9. Bd2 {[%clk 0:02:47.3]} 9... O-O
{[%clk 0:02:08.3]} 10. Bxb4 {[%clk 0:02:47]} 10... Nxb4 {[%clk 0:02:09.1]} 11.
Nc3 {[%clk 0:02:45.5]} 11... Re8 {[%clk 0:01:40.1]} 12. Qb1 {[%clk 0:02:35.3]}
12... Qa5 {[%clk 0:01:30]} 13. Kf2 {[%clk 0:02:35.9]} 13... Nc6 {[%clk
0:01:22.5]} 14. e5 {[%clk 0:02:26.9]} 14... Ng4+ {[%clk 0:01:18]} 15. Kg3 {[%clk
0:02:27.4]} 15... Qxc3 {[%clk 0:01:16.8]} 16. Bd3 {[%clk 0:02:27.2]} 16... h6
{[%clk 0:01:07.8]} 17. Rc1 {[%clk 0:02:26.5]} 17... Qb4 {[%clk 0:00:58.4]} 18.
Qxb4 {[%clk 0:02:04.5]} 18... Nxb4 {[%clk 0:00:58.2]} 19. Bb5 {[%clk 0:02:06.4]}
19... Rd8 {[%clk 0:00:56.2]} 20. h3 {[%clk 0:01:53.4]} 20... Ne3 {[%clk
0:00:55.7]} 21. Kf2 {[%clk 0:01:54.5]} 21... Nf5 {[%clk 0:00:43]} 22. g4 {[%clk
0:01:54.7]} 22... Ne7 {[%clk 0:00:43.7]} 23. a3 {[%clk 0:01:55.4]} 23... Nbd5
{[%clk 0:00:44.2]} 24. exd6 {[%clk 0:01:52.8]} 24... Rxd6 {[%clk 0:00:44.8]} 25.
Kg3 {[%clk 0:01:54]} 25... Bd7 {[%clk 0:00:44.6]} 26. Bxd7 {[%clk 0:01:53.9]}
26... Rxd7 {[%clk 0:00:45.2]} 27. Ne5 {[%clk 0:01:55.8]} 27... Rd6 {[%clk
0:00:45.7]} 28. Rab1 {[%clk 0:01:52.5]} 28... b6 {[%clk 0:00:43.8]} 29. a4
{[%clk 0:01:53.9]} 29... f6 {[%clk 0:00:42.7]} 30. Nc4 {[%clk 0:01:54.2]} 30...
Rd7 {[%clk 0:00:42.6]} 31. a5 {[%clk 0:01:56.1]} 31... bxa5 {[%clk 0:00:39.1]}
32. Nxa5 {[%clk 0:01:57.2]} 32... Nb6 {[%clk 0:00:40.2]} 33. Rb4 {[%clk
0:01:56]} 33... Rad8 {[%clk 0:00:40.8]} 34. f5 {[%clk 0:01:51.9]} 34... Kf7
{[%clk 0:00:33.2]} 35. Nb3 {[%clk 0:01:50.7]} 35... Ned5 {[%clk 0:00:30.1]} 36.
Rb5 {[%clk 0:01:50.9]} 36... Re8 {[%clk 0:00:31.1]} 37. Nc5 {[%clk 0:01:45.2]}
37... Re3+ {[%clk 0:00:31.9]} 38. Kh4 {[%clk 0:01:46]} 38... Rc7 {[%clk
0:00:31.2]} 39. Ra1 {[%clk 0:01:41]} 39... Ne7 {[%clk 0:00:31.4]} 40. Rb3 {[%clk
0:01:40.7]} 40... g5+ {[%clk 0:00:29.4]} 41. fxg6+ {[%clk 0:01:40.6]} 41...
Nxg6+ {[%clk 0:00:30.2]} 42. Kh5 {[%clk 0:01:42.1]} 42... Rxc5+ {[%clk
0:00:19.7]} 43. dxc5 {[%clk 0:01:43.2]} 43... Rxb3 {[%clk 0:00:20.8]} 44. Rxa7+
{[%clk 0:01:44]} 44... Ne7 {[%clk 0:00:21.9]} 45. h4 {[%clk 0:01:41]} 45... Nd5
{[%clk 0:00:22.2]} 46. Kxh6 {[%clk 0:01:42.3]} 46... Rc3 {[%clk 0:00:23.1]} 47.
g5 {[%clk 0:01:41.8]} 47... fxg5 {[%clk 0:00:23.9]} 48. Kxg5 {[%clk 0:01:42.3]}
48... Rxc5 {[%clk 0:00:24.6]} 49. h5 {[%clk 0:01:41.9]} 49... Nf6+ {[%clk
0:00:25.6]} 50. Kf4 {[%clk 0:01:41.1]} 50... Rxh5 {[%clk 0:00:26.7]} 51. Ra1
{[%clk 0:01:41.4]} 51... Rh4+ {[%clk 0:00:27.7]} 52. Kg3 {[%clk 0:01:40.6]}
52... Nf5+ {[%clk 0:00:28.6]} 53. Kf3 {[%clk 0:01:42.2]} 53... Nd5 {[%clk
0:00:27.2]} 54. Ra7+ {[%clk 0:01:43.1]} 54... Ke6 {[%clk 0:00:28]} 55. Ra6+
{[%clk 0:01:45]} 55... Ke5 {[%clk 0:00:29.3]} 56. Ra5 {[%clk 0:01:45.7]} 56...
Rh3+ {[%clk 0:00:29.7]} 57. Kg4 {[%clk 0:01:47.2]} 57... Rg3+ {[%clk 0:00:28.4]}
58. Kh5 {[%clk 0:01:48.6]} 58... Nd6 {[%clk 0:00:27.4]} 59. Kh6 {[%clk
0:01:45.5]} 59... Rg1 {[%clk 0:00:20.6]} 60. Kh5 {[%clk 0:01:45.1]} 60... Ke6
{[%clk 0:00:21.9]} 61. Kh6 {[%clk 0:01:45.7]} 61... Ne7 {[%clk 0:00:21.1]} 62.
Ra6 {[%clk 0:01:45.9]} 62... Ke5 {[%clk 0:00:20.7]} 63. Ra5+ {[%clk 0:01:46.4]}
63... Kf6 {[%clk 0:00:21.5]} 64. Kh5 {[%clk 0:01:47.4]} 64... Nef5 {[%clk
0:00:20.8]} 65. Rxf5+ {[%clk 0:01:43.1]} 65... Kxf5 {[%clk 0:00:21.8]} 66. Kh6
{[%clk 0:01:44.1]} 66... Rg5 {[%clk 0:00:19.7]} 67. Kh7 {[%clk 0:01:45.2]} 67...
Kf6 {[%clk 0:00:20.1]} 68. Kh8 {[%clk 0:01:47.1]} 68... Nf7+ {[%clk 0:00:20.9]}
69. Kh7 {[%clk 0:01:48.2]} 69... Rg7# {[%clk 0:00:21.7]} 0-1

[Event "*** Titled Tuesday 3|2 Blitz"]
[Site "Chess.com"]
[Date "2016.02.02"]
[Round "7"]
[White "davidarenas1224"]
[Black "Assasin14"]
[Result "1-0"]
[WhiteElo "2103"]
[BlackElo "2009"]
[TimeControl "180+2"]
[EndTime "18:24:58 PST"]
[Termination "davidarenas1224 won by resignation"]

1. e4 {[%clk 0:03:01.9]} 1... c5 {[%clk 0:03:00]} 2. Nf3 {[%clk 0:03:00.8]} 2...
d6 {[%clk 0:02:59.6]} 3. d4 {[%clk 0:03:00.2]} 3... cxd4 {[%clk 0:03:01.5]} 4.
Nxd4 {[%clk 0:03:02.1]} 4... Nf6 {[%clk 0:03:02.5]} 5. Nc3 {[%clk 0:02:59.6]}
5... a6 {[%clk 0:03:02]} 6. f3 {[%clk 0:02:59.4]} 6... e5 {[%clk 0:03:01.2]} 7.
Nb3 {[%clk 0:03:00.2]} 7... Be6 {[%clk 0:03:01.2]} 8. Be3 {[%clk 0:02:55]} 8...
Nbd7 {[%clk 0:03:01.6]} 9. g4 {[%clk 0:02:51.6]} 9... Rc8 {[%clk 0:02:56.4]} 10.
Qd2 {[%clk 0:02:49]} 10... b5 {[%clk 0:02:52.8]} 11. g5 {[%clk 0:02:47.4]} 11...
Nh5 {[%clk 0:02:52.7]} 12. O-O-O {[%clk 0:02:45.6]} 12... Nb6 {[%clk 0:02:27]}
13. Na5 {[%clk 0:02:40.8]} 13... b4 {[%clk 0:01:56.1]} 14. Nb1 {[%clk
0:02:26.2]} 14... Qc7 {[%clk 0:01:36.9]} 15. Bxa6 {[%clk 0:02:18]} 15... Ra8
{[%clk 0:01:23.2]} 16. Bb5+ {[%clk 0:02:16.6]} 16... Nd7 {[%clk 0:01:22.1]} 17.
Nb3 {[%clk 0:01:20.2]} 17... Rxa2 {[%clk 0:01:08.6]} 18. Qxb4 {[%clk 0:01:20.4]}
18... d5 {[%clk 0:01:04.7]} 19. Bc5 {[%clk 0:01:18.2]} 19... d4 {[%clk
0:00:38.6]} 20. Bxf8 {[%clk 0:01:15.1]} 20... Rxf8 {[%clk 0:00:38.3]} 21. Nxd4
{[%clk 0:00:57.2]} 21... exd4 {[%clk 0:00:36.9]} 22. Rxd4 {[%clk 0:00:58.2]}
22... Qa5 {[%clk 0:00:25]} 23. Qc5 {[%clk 0:00:26.2]} 23... Qa8 {[%clk
0:00:12.8]} 24. Rhd1 {[%clk 0:00:24.9]} 24... Ra7 {[%clk 0:00:13]} 25. Rd6
{[%clk 0:00:14.9]} 25... Nf4 {[%clk 0:00:13.3]} 26. Qe5 {[%clk 0:00:12.5]} 26...
Ne2+ {[%clk 0:00:11.5]} 27. Kd2 {[%clk 0:00:12.2]} 27... Nc3 {[%clk 0:00:07.3]}
28. Nxc3 {[%clk 0:00:11.8]} 28... Rb7 {[%clk 0:00:07.3]} 29. Bxd7+ {[%clk
0:00:11.8]} 29... Rxd7 {[%clk 0:00:08.1]} 30. Rxd7 {[%clk 0:00:13.2]} 30... Kxd7
{[%clk 0:00:09.1]} 31. Kc1+ {[%clk 0:00:13.8]} 31... Ke7 {[%clk 0:00:10.3]} 32.
Qd6+ {[%clk 0:00:14.3]} 32... Ke8 {[%clk 0:00:11.3]} 33. Kb1 {[%clk 0:00:13.2]}
33... Qc8 {[%clk 0:00:11.9]} 34. Nd5 {[%clk 0:00:13]} 34... Bxd5 {[%clk
0:00:12.7]} 35. exd5 {[%clk 0:00:12.9]} 35... f6 {[%clk 0:00:13.3]} 36. Re1+
{[%clk 0:00:13.5]} 36... Kf7 {[%clk 0:00:14.4]} 37. Re7+ {[%clk 0:00:13.7]}
37... Kg6 {[%clk 0:00:15.2]} 38. Rc7 {[%clk 0:00:11.9]} 38... Qf5 {[%clk
0:00:15.4]} 39. Qxf8 {[%clk 0:00:11.7]} 39... Qxf3 {[%clk 0:00:15.8]} 40. Qxg7+
{[%clk 0:00:10.6]} 40... Kh5 {[%clk 0:00:16.9]} 41. Qxh7+ {[%clk 0:00:11]} 41...
Kxg5 {[%clk 0:00:17.6]} 42. Rg7+ {[%clk 0:00:11.2]} 42... Kf4 {[%clk 0:00:18.9]}
43. Qh4+ {[%clk 0:00:11.1]} 43... Ke5 {[%clk 0:00:19.9]} 44. Qg3+ {[%clk
0:00:11.9]} 44... Qxg3 {[%clk 0:00:20.9]} 45. hxg3 {[%clk 0:00:13.7]} 45... Kxd5
{[%clk 0:00:22.6]} 46. Re7 {[%clk 0:00:13.3]} 46... Kd6 {[%clk 0:00:23.6]} 47.
Re1 {[%clk 0:00:15.1]} 47... Kd5 {[%clk 0:00:24.9]} 48. b4 {[%clk 0:00:16.1]}
48... Kc4 {[%clk 0:00:26.3]} 49. Re6 {[%clk 0:00:16.8]} 49... f5 {[%clk
0:00:26.1]} 50. Rf6 {[%clk 0:00:18]} 50... Kxb4 {[%clk 0:00:27.6]} 51. Rxf5
{[%clk 0:00:19.4]} 51... Kc3 {[%clk 0:00:29.5]} 52. g4 {[%clk 0:00:20.4]} 52...
Kd4 {[%clk 0:00:31.4]} 53. g5 {[%clk 0:00:21.6]} 53... Ke4 {[%clk 0:00:31.5]}
54. Rf1 {[%clk 0:00:23.5]} 54... Ke5 {[%clk 0:00:32.7]} 55. g6 {[%clk
0:00:24.9]} 55... Ke6 {[%clk 0:00:34.6]} 56. g7 {[%clk 0:00:26.5]} 56... Ke7
{[%clk 0:00:36.5]} 57. g8=Q {[%clk 0:00:28.1]} 57... Kd6 {[%clk 0:00:37.2]} 58.
Qg5 {[%clk 0:00:29.1]} 1-0

[Event "*** Titled Tuesday 3|2 Blitz"]
[Site "Chess.com"]
[Date "2016.02.02"]
[Round "7"]
[White "JusticeBot"]
[Black "chessking2151"]
[Result "1-0"]
[WhiteElo "2430"]
[BlackElo "2248"]
[TimeControl "180+2"]
[EndTime "18:25:05 PST"]
[Termination "JusticeBot won by checkmate"]

1. e4 {[%clk 0:03:01.9]} 1... e5 {[%clk 0:02:59.8]} 2. Nf3 {[%clk 0:03:02.6]}
2... Nc6 {[%clk 0:03:01.2]} 3. Bc4 {[%clk 0:03:03.4]} 3... Nf6 {[%clk
0:03:01.7]} 4. d3 {[%clk 0:03:03.9]} 4... Be7 {[%clk 0:03:02.6]} 5. O-O {[%clk
0:03:05.4]} 5... O-O {[%clk 0:03:03.8]} 6. Re1 {[%clk 0:03:06.8]} 6... d6 {[%clk
0:03:04.9]} 7. c3 {[%clk 0:03:07.7]} 7... Na5 {[%clk 0:03:04.2]} 8. Bb5 {[%clk
0:03:09.1]} 8... a6 {[%clk 0:03:05.4]} 9. Ba4 {[%clk 0:03:10.7]} 9... b5 {[%clk
0:03:06.6]} 10. Bc2 {[%clk 0:03:12.6]} 10... c5 {[%clk 0:03:06.7]} 11. Nbd2
{[%clk 0:03:14.5]} 11... Rb8 {[%clk 0:02:55]} 12. Nf1 {[%clk 0:03:16.4]} 12...
Nd7 {[%clk 0:02:45.3]} 13. Ne3 {[%clk 0:03:16.3]} 13... g6 {[%clk 0:02:45.5]}
14. Nd5 {[%clk 0:03:15.3]} 14... Bb7 {[%clk 0:02:44.3]} 15. Nxe7+ {[%clk
0:03:14.4]} 15... Qxe7 {[%clk 0:02:43.6]} 16. Bh6 {[%clk 0:03:16.3]} 16... Rfe8
{[%clk 0:02:44.1]} 17. Ng5 {[%clk 0:03:16.6]} 17... f6 {[%clk 0:02:38.2]} 18.
Nf3 {[%clk 0:02:57.3]} 18... d5 {[%clk 0:02:31.4]} 19. h4 {[%clk 0:02:30.1]}
19... Rbd8 {[%clk 0:02:11.8]} 20. Qc1 {[%clk 0:02:25.1]} 20... c4 {[%clk
0:01:59.5]} 21. b4 {[%clk 0:02:24]} 21... cxd3 {[%clk 0:01:35.5]} 22. Bxd3
{[%clk 0:02:24.6]} 22... dxe4 {[%clk 0:01:34.1]} 23. Bxe4 {[%clk 0:02:22.6]}
23... Bxe4 {[%clk 0:01:35.3]} 24. Rxe4 {[%clk 0:02:24.1]} 24... Nc4 {[%clk
0:01:36.9]} 25. a4 {[%clk 0:02:22.4]} 25... Ndb6 {[%clk 0:01:31.7]} 26. axb5
{[%clk 0:02:20.1]} 26... axb5 {[%clk 0:01:33]} 27. Re2 {[%clk 0:02:06.8]} 27...
Qd6 {[%clk 0:01:26.4]} 28. Be3 {[%clk 0:01:47.5]} 28... Na4 {[%clk 0:01:16.5]}
29. Nd2 {[%clk 0:01:18.5]} 29... Qd3 {[%clk 0:01:12.8]} 30. Re1 {[%clk 0:00:35]}
30... Nxd2 {[%clk 0:01:10.3]} 31. Rd1 {[%clk 0:00:36.2]} 31... Nxc3 {[%clk
0:00:55.5]} 32. Rxd2 {[%clk 0:00:37.4]} 32... Ne2+ {[%clk 0:00:52.8]} 33. Rxe2
{[%clk 0:00:31]} 33... Qxe2 {[%clk 0:00:54.7]} 34. Kh2 {[%clk 0:00:22.1]} 34...
Qc4 {[%clk 0:00:54.9]} 35. Qb2 {[%clk 0:00:12.6]} 35... Qxh4+ {[%clk 0:00:53.8]}
36. Kg1 {[%clk 0:00:14.5]} 36... Qc4 {[%clk 0:00:53.8]} 37. g3 {[%clk
0:00:05.5]} 37... Qf7 {[%clk 0:00:52.9]} 38. Ra5 {[%clk 0:00:06.3]} 38... Qd7
{[%clk 0:00:51.6]} 39. Kh2 {[%clk 0:00:05.9]} 39... Ra8 {[%clk 0:00:49.2]} 40.
Qa2+ {[%clk 0:00:05.7]} 40... Kg7 {[%clk 0:00:48.2]} 41. Rxa8 {[%clk 0:00:07.1]}
41... Re7 {[%clk 0:00:49.8]} 42. Ra7 {[%clk 0:00:07.8]} 42... Qe8 {[%clk
0:00:48.5]} 43. Qa5 {[%clk 0:00:05.6]} 43... g5 {[%clk 0:00:35.7]} 44. Rxe7+
{[%clk 0:00:05]} 44... Qxe7 {[%clk 0:00:37.6]} 45. Qxb5 {[%clk 0:00:06.3]} 45...
Qe6 {[%clk 0:00:39.3]} 46. Qb7+ {[%clk 0:00:07]} 46... Kg6 {[%clk 0:00:40.8]}
47. Qc7 {[%clk 0:00:07.5]} 47... Qb3 {[%clk 0:00:38.6]} 48. Qb8 {[%clk 0:00:07]}
48... h5 {[%clk 0:00:38]} 49. b5 {[%clk 0:00:07.2]} 49... h4 {[%clk 0:00:39.5]}
50. gxh4 {[%clk 0:00:07.9]} 50... Qc4 {[%clk 0:00:38.8]} 51. Qe8+ {[%clk
0:00:08]} 51... Kf5 {[%clk 0:00:39.2]} 52. Qd7+ {[%clk 0:00:09.1]} 52... Kg6
{[%clk 0:00:39.8]} 53. h5+ {[%clk 0:00:09.3]} 53... Kh6 {[%clk 0:00:35.4]} 54.
b6 {[%clk 0:00:10.4]} 54... Qh4+ {[%clk 0:00:36.3]} 55. Qh3 {[%clk 0:00:11.4]}
55... Qb4 {[%clk 0:00:36.2]} 56. Qf5 {[%clk 0:00:12.6]} 56... Qd6 {[%clk
0:00:34.8]} 57. Qg6# {[%clk 0:00:12.9]} 1-0

[Event "*** Titled Tuesday 3|2 Blitz"]
[Site "Chess.com"]
[Date "2016.02.02"]
[Round "7"]
[White "Recombinant"]
[Black "vellottiwizard"]
[Result "0-1"]
[WhiteElo "2215"]
[BlackElo "2398"]
[TimeControl "180+2"]
[EndTime "18:26:25 PST"]
[Termination "vellottiwizard won by resignation"]

1. d4 {[%clk 0:03:01.9]} 1... Nf6 {[%clk 0:02:59.3]} 2. c4 {[%clk 0:03:02.6]}
2... e6 {[%clk 0:03:00.3]} 3. Nc3 {[%clk 0:03:02.9]} 3... Bb4 {[%clk 0:03:01.7]}
4. e3 {[%clk 0:03:04.1]} 4... O-O {[%clk 0:03:02.6]} 5. Ne2 {[%clk 0:03:05.3]}
5... d5 {[%clk 0:03:04.2]} 6. a3 {[%clk 0:03:06.3]} 6... Be7 {[%clk 0:03:05.8]}
7. Nf4 {[%clk 0:03:06.5]} 7... dxc4 {[%clk 0:02:55.3]} 8. Bxc4 {[%clk 0:03:07]}
8... c5 {[%clk 0:02:56.8]} 9. d5 {[%clk 0:03:03.3]} 9... e5 {[%clk 0:02:51.5]}
10. Nfe2 {[%clk 0:03:03.7]} 10... a6 {[%clk 0:02:50.9]} 11. a4 {[%clk
0:02:51.8]} 11... Ne8 {[%clk 0:02:51.4]} 12. O-O {[%clk 0:02:51.7]} 12... Nd6
{[%clk 0:02:51.8]} 13. b3 {[%clk 0:02:47.6]} 13... Nd7 {[%clk 0:02:49.5]} 14. a5
{[%clk 0:02:43]} 14... f5 {[%clk 0:02:48.1]} 15. f3 {[%clk 0:02:39.8]} 15... Nf6
{[%clk 0:02:46.4]} 16. Bb2 {[%clk 0:02:37.9]} 16... Qe8 {[%clk 0:02:46.5]} 17.
Na4 {[%clk 0:02:36.9]} 17... Nxc4 {[%clk 0:02:46]} 18. bxc4 {[%clk 0:02:37.3]}
18... Bd6 {[%clk 0:02:47.5]} 19. Nb6 {[%clk 0:02:37.4]} 19... Rb8 {[%clk
0:02:48.2]} 20. Ng3 {[%clk 0:02:18.6]} 20... Qg6 {[%clk 0:02:45.3]} 21. Qc2
{[%clk 0:02:02.5]} 21... e4 {[%clk 0:02:30.5]} 22. f4 {[%clk 0:01:39.5]} 22...
Ng4 {[%clk 0:02:29.4]} 23. Qe2 {[%clk 0:01:35]} 23... Rf7 {[%clk 0:01:49.6]} 24.
h3 {[%clk 0:01:32.1]} 24... Nf6 {[%clk 0:01:43.9]} 25. Kh2 {[%clk 0:01:29.3]}
25... Nd7 {[%clk 0:01:40.2]} 26. Nxd7 {[%clk 0:01:19.7]} 26... Bxd7 {[%clk
0:01:40.2]} 27. Be5 {[%clk 0:01:19.6]} 27... Re8 {[%clk 0:01:38.6]} 28. Bc3
{[%clk 0:01:08.4]} 28... Qh6 {[%clk 0:01:18.6]} 29. Qh5 {[%clk 0:01:06.7]} 29...
Qxh5 {[%clk 0:01:18.7]} 30. Nxh5 {[%clk 0:01:07.8]} 30... Bc8 {[%clk 0:01:17.4]}
31. Rab1 {[%clk 0:01:07]} 31... Bc7 {[%clk 0:01:18.3]} 32. Rfd1 {[%clk
0:01:01.6]} 32... Rd8 {[%clk 0:01:19]} 33. Rd2 {[%clk 0:00:52.4]} 33... Kf8
{[%clk 0:01:16]} 34. Rbd1 {[%clk 0:00:50.7]} 34... g6 {[%clk 0:01:06.7]} 35. Ng3
{[%clk 0:00:40.6]} 35... Bd6 {[%clk 0:00:54.7]} 36. Ne2 {[%clk 0:00:36.4]} 36...
Re8 {[%clk 0:00:52.9]} 37. Nc1 {[%clk 0:00:34]} 37... g5 {[%clk 0:00:49.3]} 38.
g3 {[%clk 0:00:34.8]} 38... h5 {[%clk 0:00:43.1]} 39. h4 {[%clk 0:00:32.8]}
39... g4 {[%clk 0:00:42.7]} 40. Nb3 {[%clk 0:00:32.9]} 40... Rc7 {[%clk
0:00:41.8]} 41. Rb2 {[%clk 0:00:29.4]} 41... Bd7 {[%clk 0:00:42.1]} 42. Rdb1
{[%clk 0:00:29.3]} 42... Bc8 {[%clk 0:00:39.3]} 43. Nd2 {[%clk 0:00:28.2]} 43...
Ke7 {[%clk 0:00:30.5]} 44. Rb6 {[%clk 0:00:29.1]} 44... Kd7 {[%clk 0:00:30.6]}
45. Bf6 {[%clk 0:00:21.4]} 45... Re7 {[%clk 0:00:11.6]} 46. Bxe7 {[%clk
0:00:21.5]} 46... Kxe7 {[%clk 0:00:13.5]} 47. Nf1 {[%clk 0:00:20.5]} 47... Rd7
{[%clk 0:00:11.7]} 48. Nd2 {[%clk 0:00:20.4]} 48... Rd8 {[%clk 0:00:12.3]} 49.
R1b2 {[%clk 0:00:18.8]} 49... Kd7 {[%clk 0:00:13.4]} 50. Rxd6+ {[%clk
0:00:19.2]} 50... Kxd6 {[%clk 0:00:13.9]} 51. Rb6+ {[%clk 0:00:21.1]} 51... Kc7
{[%clk 0:00:15.4]} 52. Rh6 {[%clk 0:00:22.2]} 52... Rd6 {[%clk 0:00:15.6]} 53.
Rh7+ {[%clk 0:00:20.7]} 53... Bd7 {[%clk 0:00:15.6]} 54. Rxh5 {[%clk 0:00:21.5]}
54... b6 {[%clk 0:00:16.8]} 55. axb6+ {[%clk 0:00:22.1]} 55... Rxb6 {[%clk
0:00:17]} 56. Kg1 {[%clk 0:00:20.4]} 56... a5 {[%clk 0:00:17.4]} 57. Rh8 {[%clk
0:00:20.6]} 57... Rb2 {[%clk 0:00:14.4]} 58. Nf1 {[%clk 0:00:20.7]} 58... a4
{[%clk 0:00:15.1]} 59. Ra8 {[%clk 0:00:21.1]} 59... Kb7 {[%clk 0:00:16.2]} 60.
Ra5 {[%clk 0:00:21.2]} 60... Kb6 {[%clk 0:00:15.5]} 61. Ra8 {[%clk 0:00:22.2]}
61... Kb7 {[%clk 0:00:16.5]} 62. Ra5 {[%clk 0:00:23.4]} 62... Be8 {[%clk
0:00:13.7]} 63. Rxc5 {[%clk 0:00:21.3]} 63... a3 {[%clk 0:00:13.8]} 64. Ra5
{[%clk 0:00:22.1]} 64... a2 {[%clk 0:00:15.1]} 65. c5 {[%clk 0:00:22.7]} 65...
Bb5 {[%clk 0:00:14.3]} 66. c6+ {[%clk 0:00:21.9]} 66... Kb6 {[%clk 0:00:15.1]}
67. Ra3 {[%clk 0:00:22.5]} 67... Bxf1 {[%clk 0:00:16.1]} 68. Kxf1 {[%clk
0:00:18.8]} 68... Rb1+ {[%clk 0:00:16.9]} 69. Ke2 {[%clk 0:00:20.2]} 69... a1=Q
{[%clk 0:00:18.8]} 70. Rxa1 {[%clk 0:00:21.5]} 70... Rxa1 {[%clk 0:00:20.7]} 71.
Kd2 {[%clk 0:00:22.2]} 71... Ra5 {[%clk 0:00:21]} 72. h5 {[%clk 0:00:20.5]}
72... Rxd5+ {[%clk 0:00:21.7]} 73. Kc3 {[%clk 0:00:21.9]} 73... Kxc6 {[%clk
0:00:23.6]} 74. Kc4 {[%clk 0:00:23.2]} 74... Rd7 {[%clk 0:00:25.5]} 75. h6
{[%clk 0:00:24.5]} 75... Rh7 {[%clk 0:00:27.4]} 76. Kd4 {[%clk 0:00:26]} 76...
Kd6 {[%clk 0:00:29]} 0-1

[Event "*** Titled Tuesday 3|2 Blitz"]
[Site "Chess.com"]
[Date "2016.02.02"]
[Round "7"]
[White "GMHess"]
[Black "attack2mateU"]
[Result "1/2-1/2"]
[WhiteElo "2492"]
[BlackElo "2497"]
[TimeControl "180+2"]
[EndTime "18:26:39 PST"]
[Termination "Game drawn by agreement"]

1. b3 {[%clk 0:03:01.9]} 1... d5 {[%clk 0:02:58.5]} 2. Bb2 {[%clk 0:03:02]} 2...
Bf5 {[%clk 0:02:59.6]} 3. Nf3 {[%clk 0:03:02.6]} 3... e6 {[%clk 0:03:00.9]} 4.
e3 {[%clk 0:03:03.8]} 4... Nd7 {[%clk 0:03:00]} 5. c4 {[%clk 0:03:04.7]} 5... c6
{[%clk 0:03:00.6]} 6. Nc3 {[%clk 0:03:06]} 6... h6 {[%clk 0:03:01.3]} 7. Be2
{[%clk 0:03:07.4]} 7... Ngf6 {[%clk 0:03:02.5]} 8. O-O {[%clk 0:03:09.1]} 8...
Be7 {[%clk 0:03:04]} 9. d4 {[%clk 0:03:09.9]} 9... O-O {[%clk 0:03:04.6]} 10.
Rc1 {[%clk 0:03:09.3]} 10... a5 {[%clk 0:02:58.8]} 11. c5 {[%clk 0:03:06.6]}
11... Qe8 {[%clk 0:02:47.2]} 12. Na4 {[%clk 0:03:02]} 12... Bd8 {[%clk
0:02:48.2]} 13. Ne1 {[%clk 0:02:55.1]} 13... e5 {[%clk 0:02:42.9]} 14. a3 {[%clk
0:02:22]} 14... Bc7 {[%clk 0:02:39.3]} 15. g3 {[%clk 0:02:13.2]} 15... Bh3
{[%clk 0:02:34.5]} 16. Ng2 {[%clk 0:02:13.7]} 16... Qe6 {[%clk 0:02:27.4]} 17.
Re1 {[%clk 0:02:04.3]} 17... e4 {[%clk 0:02:26.7]} 18. Nf4 {[%clk 0:01:58]}
18... Bxf4 {[%clk 0:02:25.1]} 19. exf4 {[%clk 0:01:59.9]} 19... Qf5 {[%clk
0:02:18.3]} 20. Rc3 {[%clk 0:01:48.2]} 20... h5 {[%clk 0:02:18.9]} 21. Bc1
{[%clk 0:01:33.1]} 21... g6 {[%clk 0:02:13.4]} 22. Qd2 {[%clk 0:01:16.9]} 22...
Bg4 {[%clk 0:02:10.1]} 23. Bf1 {[%clk 0:01:11.2]} 23... Kg7 {[%clk 0:01:50.3]}
24. Nb2 {[%clk 0:01:11.5]} 24... Rh8 {[%clk 0:01:51.4]} 25. Nd1 {[%clk
0:01:12.4]} 25... Bxd1 {[%clk 0:01:52.2]} 26. Qxd1 {[%clk 0:01:08.4]} 26... h4
{[%clk 0:01:50.6]} 27. Bg2 {[%clk 0:00:58.2]} 27... Rh7 {[%clk 0:01:32.3]} 28.
h3 {[%clk 0:00:49.8]} 28... hxg3 {[%clk 0:01:32.9]} 29. Rxg3 {[%clk 0:00:51.3]}
29... Nh5 {[%clk 0:01:28.4]} 30. Rg5 {[%clk 0:00:49.7]} 30... Qf6 {[%clk
0:01:18.4]} 31. f5 {[%clk 0:00:42.1]} 31... Kh8 {[%clk 0:01:14.1]} 32. fxg6
{[%clk 0:00:24.3]} 32... fxg6 {[%clk 0:01:16]} 33. Qg4 {[%clk 0:00:23.1]} 33...
Rf8 {[%clk 0:01:00.5]} 34. Be3 {[%clk 0:00:20.5]} 34... Rg7 {[%clk 0:00:41.6]}
35. Rf1 {[%clk 0:00:09.6]} 35... Nf4 {[%clk 0:00:21.4]} 36. h4 {[%clk
0:00:09.4]} 36... Nxg2 {[%clk 0:00:15.8]} 37. Qxg2 {[%clk 0:00:10.1]} 37... Qf3
{[%clk 0:00:14.2]} 38. Qh2 {[%clk 0:00:05.3]} 38... Nf6 {[%clk 0:00:11.1]} 39.
Rg3 {[%clk 0:00:05.6]} 39... Qf5 {[%clk 0:00:11.9]} 40. Qg2 {[%clk 0:00:05.4]}
40... Nh5 {[%clk 0:00:12.6]} 41. Rg5 {[%clk 0:00:06.1]} 41... Qf3 {[%clk
0:00:13.8]} 42. Kh2 {[%clk 0:00:05.1]} 42... Qxg2+ {[%clk 0:00:13.9]} 43. Kxg2
{[%clk 0:00:07]} 43... Rf3 {[%clk 0:00:15.1]} 44. Rh1 {[%clk 0:00:07.1]} 44...
Kh7 {[%clk 0:00:16.4]} 45. Rh3 {[%clk 0:00:08]} 45... Rgf7 {[%clk 0:00:16.7]}
46. Rxf3 {[%clk 0:00:08.8]} 46... Rxf3 {[%clk 0:00:18.6]} 47. Re5 {[%clk
0:00:10.1]} 47... Rf7 {[%clk 0:00:15.8]} 48. Kh3 {[%clk 0:00:10.3]} 48... Ng7
{[%clk 0:00:17]} 49. Kg4 {[%clk 0:00:10.6]} 49... Nf5 {[%clk 0:00:18.3]} 50. Kg5
{[%clk 0:00:11]} 50... Ng7 {[%clk 0:00:08.4]} 51. Kg4 {[%clk 0:00:09.4]} 51...
Nf5 {[%clk 0:00:08.1]} 52. b4 {[%clk 0:00:10.7]} 52... a4 {[%clk 0:00:08.8]} 53.
b5 {[%clk 0:00:11.4]} 53... Nxe3+ {[%clk 0:00:09.3]} 54. fxe3 {[%clk 0:00:12.7]}
54... Kh6 {[%clk 0:00:10.8]} 55. bxc6 {[%clk 0:00:13.6]} 55... bxc6 {[%clk
0:00:12.7]} 56. Re6 {[%clk 0:00:15.1]} 56... Rf3 {[%clk 0:00:13.9]} 57. h5
{[%clk 0:00:16]} 57... Rxe3 {[%clk 0:00:15.4]} 58. Rxg6+ {[%clk 0:00:17.2]}
58... Kh7 {[%clk 0:00:17]} 59. Rxc6 {[%clk 0:00:19.1]} 59... Rxa3 {[%clk
0:00:18.1]} 60. Rd6 {[%clk 0:00:20.1]} 60... Rd3 {[%clk 0:00:14.1]} 61. Rxd5
{[%clk 0:00:18.9]} 61... a3 {[%clk 0:00:15.1]} 62. c6 {[%clk 0:00:16.3]} 62...
a2 {[%clk 0:00:15.3]} 63. Rd7+ {[%clk 0:00:17.1]} 63... Kh6 {[%clk 0:00:15.8]}
64. Rd6+ {[%clk 0:00:17.8]} 64... Kh7 {[%clk 0:00:17.3]} 65. Rd7+ {[%clk
0:00:19.2]} 65... Kh6 {[%clk 0:00:18.8]} 66. Ra7 {[%clk 0:00:14.2]} 66... Rxd4
{[%clk 0:00:15.9]} 67. Rxa2 {[%clk 0:00:14.9]} 67... Rc4 {[%clk 0:00:17.1]} 68.
Ra6 {[%clk 0:00:16]} 68... e3+ {[%clk 0:00:15.2]} 69. Kf3 {[%clk 0:00:15.7]}
69... Rc3 {[%clk 0:00:16.5]} 70. c7+ {[%clk 0:00:06.5]} 70... Kxh5 {[%clk
0:00:17]} 71. Ra5+ {[%clk 0:00:05.7]} 71... Kg6 {[%clk 0:00:17.6]} 72. Ra3
{[%clk 0:00:06.5]} 72... Rxc7 {[%clk 0:00:16.9]} 73. Rxe3 {[%clk 0:00:08.1]}
1/2-1/2